{"text_format":"1","workbook":"xlsx","n_sheets":7,"sheets":["Nutzungsanleitung","1. Datenerfassung","2. Flächenzuordnung","3. Kostenzuordnung & Mietber.","4. Regelbedarf","5. Zusammenfassung","6. Export"],"not_rendered":{"charts":0,"images":5,"macros":1,"external_links":0,"defined_names":12,"comments":0,"pivot_tables":0},"unopened":[],"bounds":{"document_bytes":16777216,"sheet_cells":100000,"rows_first":2000,"rows_last":500,"rows_between":2000,"halvings":0,"cell_chars":16384,"cell_head_chars":4096},"cells_cut":0,"cells_raw":0,"read":"whole","date_system":"1900"}

{"sheet":"Nutzungsanleitung","index":0,"n_rows":13,"n_cols":18,"rows_kept":13,"cut":false,"hidden":false,"merged":[[0,0,1,7],[3,0,3,3]]}
["Erhebungstool Trennung der Leistungen im Bundesteilhabegesetz ab 2020"]
[]
[]
["Nutzungsanleitung",null,null,null,"Hinweis: Um alle Funktionen des Erhebungstools nutzen zu können, achten Sie bitte darauf, dass Makros in Excel aktiviert werden/bleiben.",null,null,null,null,null,null,null,null,null,null,null,null,"Makros aktvieren:"]
[null,null,null,null,null,null,null,null,null,null,null,null,null,null,null,null,null,"1. Schritt:"]
[]
[]
[]
[]
[]
[]
[]
[null,null,null,null,null,null,null,null,null,null,null,null,null,null,null,null,null,"2. Schritt:"]

{"sheet":"1. Datenerfassung","index":1,"n_rows":32,"n_cols":7,"rows_kept":32,"cut":false,"hidden":false,"merged":[[0,0,1,1],[3,1,3,9],[29,2,31,8]]}
["Erhebungstool Trennung der Leistungen im Bundesteilhabegesetz ab 2020"]
[]
[]
["1. Datenerfassung","Auf diesem Tabellenblatt sind nur Zeilen mit * unbedingt auszufüllen, die anderen Felder sind optional"]
[]
["Name der Einrichtung*","Musterwohnheim",null,null,null,null,"Bayern"]
[null,null,null,null,null,null,"Berlin "]
["Straße, Hausnummer","Musterstr.",null,null,null,null,"Brandenburg"]
[null,null,null,null,null,null,"Bremen "]
["Postleitzahl*",12345,null,null,null,null,"Mecklenburg-Vorpommern"]
[null,null,null,null,null,null,"Niedersachsen"]
["Stadt","Musterstadt",null,null,null,null,"Nordrhein-Westfalen"]
[null,null,null,null,null,null,"Rheinland-Pfalz"]
["Kommune","Musterkommune",null,null,null,null,"Saarland"]
[null,null,null,null,null,null,"Sachsen"]
["Bundesland*","Nordrhein-Westfalen",null,null,null,null,"Sachsen-Anhalt"]
[null,null,null,null,null,null,"Schleswig-Holstein"]
["Nutzung zusätzlicher Gebäudeeinheiten*","J/N",null,null,null,null,"Thüringen"]
[]
["Typ der Einrichtung","besondere Wohnform"]
[]
["Bewohnerzahl*",24]
[]
["Baujahr Gebäude",1999]
[]
["Gebäudeart (Altbau, Plattenbau, Schloß etc.)","Neubau"]
[]
["früherer Leistungstyp*"]
[]
["max. anerkennungsfähige Miete in € für eine Person*",350,"Bitte erfragen Sie den Wert der anerkennungsfähigen (\"durchschnittlichen tatsächlichen angemessenen\") Grundsicherungsmiete bei Ihrer/m zuständigen Kommune/Landkreis."]
["max. anerkennungsfähige Heizkosten in € für eine Person*",80]
["anerkennungsfähige Warmmiete des Grundsicherungsträgers (100%) (eventueller 25%-Aufschlag wird auf Tabellenblatt 3 aufgerechnet)",{"$f":"B30+B31","v":430}]

{"sheet":"2. Flächenzuordnung","index":2,"n_rows":93,"n_cols":4,"rows_kept":93,"cut":false,"hidden":false,"merged":[[76,0,76,3],[4,1,4,3],[0,0,1,3],[75,0,75,3],[11,3,11,5],[12,3,12,5],[17,3,17,5],[19,3,19,5],[20,3,20,5]]}
["Erhebungstool Trennung der Leistungen im Bundesteilhabegesetz ab 2020"]
[]
[]
["2. Flächenzuordnung"]
[null,"Bisher sind Beispielzahlen hinterlegt, bitte in Spalte C eigene Werte (Gesamtwerte über alle Bewohner, z.B. \"Bewohnerbad\" = 10 m² je Bewohnerbad x 24 Bewohner = 240 m²) eingeben"]
[]
["Fläche","Zuordnung ","m²","Anmerkungen"]
["Individueller Wohnraum "]
["Bewohnerbad/Dusche","KdU",240]
["Bewohnerraum mit integriertem Sanitärbereich","KdU",120]
["Bewohnerzimmer Einzelzimmer","KdU",100]
["Mehrbettzimmer","KdU",200,"Doppelzimmer 50/50 Aufteilung der individuellen Wohnfläche"]
["Balkon (25%)","KdU",25,"Anrechnung zu 25% (laut WoFlV), von vornherein anteiligen Wert eingeben"]
["Sonstiges:","KdU",0]
["Gesamt Individueller Wohnraum",null,{"$f":"SUM(C9:C14)","v":685}]
[]
["Gemeinsamer Wohnraum"]
["Essräume","KdU",50,"ähnlich wie Küche und Esszimmer einer normalen Wohnung "]
["Gruppenküche/ Wohnküche","KdU",25]
["Zentralküche","KdU",50,"Speisesaal, gehört zum Wohnheim"]
["Gemeinschaftsraum","KdU",30,"entspricht Wohnzimmer"]
["Flur Wohngruppe","KdU",30]
["Barrierefreies Bad mit Badewanne","KdU",10]
["Terasse (25%)","KdU",10,"Analog Balkon (aber nicht individuell für ein Bewohnerzimmer)"]
["Wintergarten (25%)","KdU",10,"Analog Balkon (aber nicht individuell für ein Bewohnerzimmer)"]
["Abstellraum/ Putzmittelraum KdU","KdU",25,"je nachdem für was/wen Abstellraum genutzt wird "]
["Rollstuhlabstellplatz","KdU",25,"Begründung: Rollstuhlfahrer im ABW benötigt ebenfalls einen Rohlstuhlabstellplatz"]
["Sonstiges:","KdU",0]
["Sonstiges:","KdU",0]
["Gesamt Gemeinsamer Wohnraum ",null,{"$f":"SUM(C18:C29)","v":265}]
[]
["Fachleistungsflächen"]
["Einrichtungsleitung/ Verwaltung","FL",10,"Büro der Einrichtungsleitung, Empfang, Verwaltungsbüro"]
["Dienstzimmer/Büro","FL",20]
["Aufenthaltsraum Mitarbeiter","FL",15,"Pausenraum, Aufenthaltsraum "]
["Umkleide Personal/Garderobe","FL",10]
["Mitarbeiter WC/Dusche","FL",10]
["Besucher WC","FL",5]
["(Nacht-)Bereitschaftszimmer/Nachtwachenzimmer","FL",15]
["Flur Fachleistungsräume","FL",10,"Keine Treppenaufgänge und Eingangsbereiche"]
["Therapieräume","FL",30]
["Timeout-Raum","FL",15]
["Snoezelenraum","FL",10]
["Funktionsräume","FL",20]
["Therapiebad","FL",14]
["Therapieküche","FL",10]
["Großküche und Speisesaal","FL",0,"externer Anbieter, Lebensmittel über RBS zu finanzieren, Trennung der Fremdleistungskosten"]
["Therapeutisches Schwimmbad","FL",100]
["Weitere Therapieflächen","FL",0]
["Fläche für therapeutisches Reiten","FL",0,"trägerspezifische Nutzung; Fläche ggf. auch von anderen Nutzern in anderen Einrichtungen der besonderen Wohnform genutzt"]
["Zimmer für Versammlung und Andachten, Trauerzimmer","FL",10]
["Vorratsraum","FL",5,"Lebensmittel o.ä. "]
["Hausmeisterraum/ Werkstatt","FL",5]
["Abstellraum/ Putzmittelraum FL","FL",25,"je nachdem für was/wen Abstellraum genutzt wird "]
["Hauswirtschaftsraum","FL",10]
["Hobbyraum","FL",10]
["Cafeteria zentral","FL",20,"wenn wirtschaftlicher Geschäftsbetrieb nicht anrechenbar"]
["Rettungswege (Heimmindestbauverordnung)","FL",10]
["Sonstiges:","FL",0]
["Gesamt Fachleistungsfläche",null,{"$f":"SUM(C33:C59)","v":389}]
[]
["Mischflächen (von m²-Erfassung ausgenommen)","Die Mischflächen werden rechnerisch nicht in die Gesamtfläche einberechnet, daher ist eine m²-Erfassung für diese Flächen (C61-C72) hier nicht erforderlich (vgl. Empfehlung der Bund-Länder-AG)."]
["Kellerräume/ Entsorgung","KdU/FL",0,"keine Eintragung erforderlich"]
["Abstellräume/ Lager","KdU/FL",0,"keine Eintragung erforderlich"]
["Waschküche","KdU/FL",0,"keine Eintragung erforderlich"]
["Dachboden/ Bodenräume","KdU/FL",0,"keine Eintragung erforderlich"]
["Trockenräume","KdU/FL",0,"keine Eintragung erforderlich"]
["Garagen","KdU/FL",0,"keine Eintragung erforderlich"]
["Flur","KdU/FL",25,"keine Eintragung erforderlich"]
["Hauseingang/ Treppenhaus","KdU/FL",0,"keine Eintragung erforderlich"]
["Hausanschluss","KdU/FL",0,"keine Eintragung erforderlich"]
["Aufzug","KdU/FL",0,"keine Eintragung erforderlich"]
["Gesamt Mischflächen",null,{"$f":"SUM(C63:C72)","v":25}]
[]
[]
["Ergebnis "]
["Flächenzuordnung"]
["m²","Gesamtwert","je Bewohner","Flächenverteilungsschlüssel"]
["∑ KdU-Fläche",{"$f":"C15+C30","v":950},{"$f":"B79/'1. Datenerfassung'!B22","v":39.583333333333336},{"$f":"B79/B81","v":0.70948469006721437}]
["∑ FL-Fläche",{"$f":"C60","v":389},{"$f":"B80/'1. Datenerfassung'!B22","v":16.208333333333332},{"$f":"B80/B81","v":0.29051530993278568}]
["Gesamtfläche (ohne Mischflächen)",{"$f":"B79+B80","v":1339},{"$f":"B81/'1. Datenerfassung'!B22","v":55.791666666666664}]
["optional: Gesamtfläche (inkl. Mischflächen)",{"$f":"B81+C73","v":1364},{"$f":"B82/'1. Datenerfassung'!B22","v":56.833333333333336}]
[]
[]
[]
[]
[]
[]
[null,"Dropdownliste Zuordnung"]
[null,"KdU"]
[null,"FL"]
[null,"KdU/FL"]
[null,"-"]

{"sheet":"3. Kostenzuordnung & Mietber.","index":3,"n_rows":160,"n_cols":7,"rows_kept":160,"cut":false,"hidden":false,"merged":[[148,4,149,4],[9,0,58,0],[61,0,86,0],[89,0,97,0],[100,0,108,0],[148,1,149,1],[148,2,149,2],[148,3,149,3],[89,3,89,8],[146,1,146,4],[145,1,145,4],[138,0,139,0],[0,0,1,2],[134,1,134,3],[31,3,31,5],[28,3,28,5],[29,3,29,5],[30,3,30,5],[35,3,35,9],[5,2,5,6],[7,6,7,7]]}
["Erhebungstool Trennung der Leistungen im Bundesteilhabegesetz ab 2020"]
[]
[]
["3. Kostenzuordnung & Mietpreisberechnung (KdU+Fachleistungsanteil)"]
[]
[null,null,"Bisher sind Beispielzahlen hinterlegt, bitte in Spalte C eigene Werte (aggregierte Ist-Kosten für ein Jahr (z.B. 2017) summiert über alle Bewohner) eingeben. Gefärbte Felder können nicht verändert werden. Wenn Sie keine detaillierten Werte haben, dann tragen Sie bitte die Ihnen bekannten Summen an beliebiger Stelle je Block ein."]
[]
[null,"Kostenposition","aggregierte Ist-Kosten pro Jahr (€)","Anmerkungen",null,null,"Bezugsjahr der eingegeben Daten"]
[]
["Nettokaltmiete","Miete, Pacht",null,null,null,"Werte für Jahr: ",2017]
[null,"Kosten Pacht für Grundstück",50000]
[null,"Miete Gebäude",3000]
[null,"Miete, Pacht Gesamt",{"$f":"SUM(C11:C12)","v":53000}]
[]
[null,"Abschreibungen",null,"ohne Abzug von Fördermitteln "]
[null,"Neubau Gebäude",70000,"Abschreibungswert 33 Jahre; kalkulatorische Miete; Annahme: tatsächliche Herstellungskosten"]
[null,"Sanierung Gebäude",10000,"Abschreibungswert 33 Jahre"]
[null,"200 Herrichten und Erschließen",1000,"Abschreibungswert 33 Jahre"]
[null,"300 Bauwerk - Baukonstruktion",1000,"Abschreibungswert 33 Jahre"]
[null,"400 Technische Anlagen",1000,"Abschreibungswert 15 Jahre"]
[null,"500 Außenanlagen",1000,"Abschreibungswert 10 Jahre"]
[null,"600 Ausstattung Bau",1000,"Abschreibungswert 10 Jahre"]
[null,"700 Herstellungsnebenkosten",1000,"Abschreibungswert 33 Jahre"]
[null,"Gesamt Abschreibungen ",{"$f":"SUM(C16:C23)","v":86000}]
[]
[null,"Einrichtung und Ausstattung"]
[null,"Instandhaltung Bewohnerzimmer",2000]
[null,"Abschreibung aus Möblierung (Fachleistungsräume)",4000,"Abschreibungswert 10 Jahre"]
[null,"Abschreibung aus Möblierung (Wohneinheit)",3000,"gesondert auszuweisen nach § 42a Abs. 5 Nr. 1-4, Abschreibungswert 10 Jahre"]
[null,"Abschreibung aus Möblierung (Gemeinschaftsräume)",10000,"gesondert auszuweisen nach § 42a Abs. 5 Nr. 1-4, Abschreibungswert 10 Jahre"]
[null,"Abschreibung aus Möblierung (übrige Räume)",3000,"gesondert auszuweisen nach § 42a Abs. 5 Nr. 1-4, Abschreibungswert 10 Jahre"]
[null,"Abschreibung Elektrogroßgeräte (Gemeinschaftsräume)",5000,"gesondert auszuweisen nach § 42a Abs. 5 Nr. 1-4, Abschreibungswert 10 Jahre"]
[null,"Gesamt Ausstattung",{"$f":"SUM(C27:C32)","v":27000}]
[]
[null,"Sonderposten"]
[null,"Sonderposten",20000,"zwei Varianten möglich: aufgrund unsicherer zukünftiger Fördermittelsituation kann der Mietpreis entweder unter Berücksichtigung der bisherigen Sonderposten (Variante A) oder ohne Berücksichtigung der Sonderposten (Variante B) berechnet werden. In den Ergebnissen (s.u.) werden beide Varianten ausgegeben."]
[null,"Sonderposten Gesamt",{"$f":"C36","v":20000}]
[]
[null,"Finanzierungskosten"]
[null,"Zinsaufwand für Darlehen",2000,"tatsächliche Kosten"]
[null,"eingesetzte Eigenmittel",30000]
[null,"Eigenkapitalzins",{"$f":"C41*0.04","v":1200},"Annahme: 4% der eingesetzten Eigenmittel"]
[null,"Finanzierungskosten Gesamt",{"$f":"C40+C42","v":3200}]
[]
[null,"Instandhaltungskosten und Wartung"]
[null,"Instandhaltung Gebäude",500]
[null,"Instandhaltung Gebäudetechnik und Einrichtung",500]
[null,"Instandhaltung Außenanlagen",500]
[null,"Wartung Gebäude",1000]
[null,"Wartung der Einrichtung",1000]
[null,"Wartung der Gebäudetechnik ",1000]
[null,"Kosten Hausverwaltung ",2000]
[null,"Instandhaltungskosten und Wartung Gesamt",{"$f":"SUM(C46:C52)","v":6500}]
[]
[null,"Versicherungen "]
[null,"Inventarversicherung",2000]
[null,"Versicherungen Gesamt",{"$f":"C56","v":2000}]
[]
[null,"Nettokaltmiete Gesamt",{"$f":"C13+C24+C33+C37+C43+C53+C57","v":197700}]
[]
[]
["Kalte Betriebskosten","Betriebskosten (nach § 2 BetrKV)",null,"Betriebskosten nach Betr.KV; Strom- und Heizkosten ausgegliedert"]
[null,"Grundsteuer",1000]
[null,"Wasserversorgung",1000]
[null,"Entwässerung",800]
[null,"Warmwasserversorgung",4000]
[null,"Betrieb und Wartung Aufzug",2000]
[null,"Straßenreinigung",2000]
[null,"Müllbeseitigung/Abfallentsorgung",1000]
[null,"Gebäudereinigung",2000,"bezieht sich auf die Betriebsflächen"]
[null,"Ungezieferbekämpfung",500]
[null,"Gartenpflege",1000]
[null,"Beleuchtung",800]
[null,"Schornsteinreinigung",1000]
[null,"Sach- und Haftpflichtversicherung ",1000,"umfasst Gebäudeversicherung"]
[null,"Hauswartkosten",3000]
[null,"Betrieb Gemeinschaftsantennenanlage",3000]
[null,"Betriebskosten Gesamt",{"$f":"SUM(C63:C77)","v":24100}]
[]
[null,"Reinigungskosten",null,"Abstimmung zum Regelbedarf nötig, Aufteilung individ. Wohnraum, Verkehrsflächen, FL-Flächen schwer zu trennen, muss aus unterschiedl. Töpfen bezahlt werden"]
[null,"Reinigung der Verkehrsflächen",500]
[null,"Kosten der Gebäudereinigung (Wohn- und Geschäftsflächen) inkl. Glasreinigung",500]
[null,"Pflege der Außenflächen",1000]
[null,"Kosten Winterdienst ",1000]
[null,"Reinigungskosten",{"$f":"SUM(C81:C84)","v":3000}]
[]
[null,"Kalte Betriebskosten Gesamt",{"$f":"C78+C85","v":27100}]
[]
[]
["Strom- und Heizkosten","Stromkosten",1200,"Berechnungsformel für den Strom ist so angelegt, dass ein Betrag für den Gesamtstrom (Zeile C90) eingetragen werden kann und daraufhin die Bereiche Haushalts-, Individual- und FL-Strom automatisch anteilig ausgerechnet werden, sodass keine gesondert erfassten Einzelbeträge eingetragen werden müssten"]
[null,"individueller Strom (RBS)",{"$f":"C90*('2. Flächenzuordnung'!C15/'2. Flächenzuordnung'!B81)","v":613.89096340552658}]
[null,"Haushaltsstrom (Gemeinschaftsfläche)",{"$f":"C90*('2. Flächenzuordnung'!C30/'2. Flächenzuordnung'!B81)","v":237.49066467513069},"gesondert auszuweisen nach § 42a"]
[null,"FL-Fläche",{"$f":"C90*('2. Flächenzuordnung'!C60/'2. Flächenzuordnung'!B81)","v":348.61837191934279}]
[null,"Stromkosten Gesamt",{"$f":"SUM(C91:C93)","v":1200}]
[]
[null,"Heizkosten "]
[null,"Heizkosten (Gas, Öl, Fernwärme, etc.)",2000]
[null,"Heizkosten Gesamt",{"$f":"SUM(C97)","v":2000}]
[]
[]
["Sonstige Kosten","Leitungsgebundene"]
[null,"Telefonanschlüsse, Internetanschlüsse; Telefonanlage",1000,"gesondert auszuweisen nach § 42a"]
[null,"Telefongebühren, Internetgebühren ",7000,"gesondert auszuweisen nach § 42a"]
[null,"Leitungsgebundene Kosten Gesamt",{"$f":"SUM(C102:C103)","v":8000}]
[]
[null,"Sonstiges"]
[null,"Raumkosten zusätzlich genutzter Gemeinschaftsflächen in separaten Gebäuden",800,"Kosten nur anteilig für die einrichtungsbezogene Nutzung eintragen"]
[]
[null,"Sonstige Kosten Gesamt",{"$f":"C104+C107","v":8800}]
[]
[]
[]
[null,"Gesamtübersicht","Gesamtkosten pro Jahr","je Bewohner pro Monat"]
[]
[null,"Nettokaltmiete ",{"$f":"C13+C24+C33+C37+C43+C53+C57","v":197700},{"$f":"C115/'1. Datenerfassung'!B22/12","v":686.45833333333337}]
[null,"Betriebskosten",{"$f":"C87","v":27100},{"$f":"C116/'1. Datenerfassung'!B22/12","v":94.097222222222229}]
[null,"Heizkosten",{"$f":"C98","v":2000},{"$f":"C117/'1. Datenerfassung'!B22/12","v":6.9444444444444438}]
[null,"Sonstige Kosten",{"$f":"C109","v":8800},{"$f":"C118/'1. Datenerfassung'!B22/12","v":30.555555555555557}]
[null,"Sonderposten",{"$f":"C36","v":20000},{"$f":"C119/'1. Datenerfassung'!$B$22/12","v":69.444444444444443}]
[null,"Leerstandswagnis (5%)",{"$f":"SUM(C115:C119)*0.05","v":12780},{"$f":"C120/'1. Datenerfassung'!$B$22/12","v":44.375}]
[null,"Mietausfallwagnis (5%)",{"$f":"SUM(C115:C119)*0.05","v":12780},{"$f":"C121/'1. Datenerfassung'!$B$22/12","v":44.375}]
[null,"Haushaltsstrom",{"$f":"C92","v":237.49066467513069},{"$f":"C122/'1. Datenerfassung'!B22/12","v":0.82462036345531498}]
[null,"Fachleistungsstrom",{"$f":"C93","v":348.61837191934279},{"$f":"C123/'1. Datenerfassung'!B22/12","v":1.2104804580532735}]
[]
[null,"Bruttowarmmiete (inkl. HH- & FL-Strom, abzgl. Sonderposten) (Variante A) aufgeteilt nach","Gesamtkosten pro Jahr (€)","je Bewohner pro Monat (€)"]
[null,"KdU-Flächenanteil",{"$f":"(C115+C116+C117+C118+C120+C121-C119)*'2. Flächenzuordnung'!D79+'3. Kostenzuordnung & Mietber.'!C122","v":171336.81852128456},{"$f":"C126/'1. Datenerfassung'!B22/12","v":594.91950875446025}]
[null,"FL-Flächenanteil",{"$f":"(C115+C116+C117+C118+C120+C121-C119)*'2. Flächenzuordnung'!D80+'3. Kostenzuordnung & Mietber.'!C123","v":70409.290515309927},{"$f":"C127/'1. Datenerfassung'!B22/12","v":244.47670317815948}]
[null,"Bruttowarmmiete Gesamt (abzgl. Sonderposten)",{"$f":"SUM(C126:C127)","v":241746.10903659448},{"$f":"SUM(D126:D127)","v":839.39621193261974}]
[]
[null,"Bruttowarmmiete (inkl. HH- & FL-Strom, ohne Sonderposten) (Variante B) aufgeteilt nach ","Gesamtkosten pro Jahr","je Bewohner pro Monat"]
[null,"KdU-Flächenanteil",{"$f":"(C115+C116+C117+C118+C120+C121)*'2. Flächenzuordnung'!D79+'3. Kostenzuordnung & Mietber.'!C122","v":185526.51232262884},{"$f":"C131/'1. Datenerfassung'!B22/12","v":644.18927889801682}]
[null,"FL-Flächenanteil",{"$f":"(C115+C116+C117+C118+C120+C121)*'2. Flächenzuordnung'!D80+'3. Kostenzuordnung & Mietber.'!C123","v":76219.596713965642},{"$f":"C132/'1. Datenerfassung'!B22/12","v":264.65137747904737}]
[null,"Bruttowarmmiete Gesamt (ohne Sonderposten)",{"$f":"SUM(C131:C132)","v":261746.10903659448},{"$f":"SUM(D131:D132)","v":908.84065637706419}]
[]
[null,"Werte des örtlich zuständigen Grundsicherungsträgers pro Bewohner pro Monat (€)"]
[]
[null,"Grundsicherungsmiete nach örtlichem Träger",{"$f":"'1. Datenerfassung'!B32","v":430},{"$f":"'1. Datenerfassung'!B32","v":430}]
[null,"darin enthalten:"]
["gesondert auszu-weisen nach § 42a Abs. 5 SGB IX","Haushaltsstrom, Instandhaltung von persönlichen Räumlichkeiten und den Räumlichkeiten zur gemeinschaftlichen Nutzung sowie Ausstattung mit Haushaltsgroßgeräten",{"$f":"(C29+C30+C31+C32+C92)/'1. Datenerfassung'!B22/12","v":73.741287030121981},{"$f":"C139","v":73.741287030121981}]
[null,"Gebühren für Telekommunikation sowie Gebühren für den Zugang zu Rundfunk, Fernsehen und Internet",{"$f":"(C102+C103)/'1. Datenerfassung'!B22/12","v":27.777777777777775},{"$f":"C140","v":27.777777777777775}]
[null,"Aufschlag 25% (wenn tatsächl. BWM KdU-Flächen > angem. GruSi nach örtl. Träger)",{"$f":"IF(D126 > C137,C137*0.25,0)","v":107.5},{"$f":"IF(D131 > C137,C137*0.25,0)","v":107.5}]
[null,"Grundsicherungsmiete Gesamt (inkl. 25% Aufschlag)",{"$f":"C137+C141","v":537.5},{"$f":"D137+D141","v":537.5}]
[]
[]
[]
[null,"Ergebnis "]
[null,"Mietpreisberechnung"]
[]
[null,"Ergebnis (Werte pro Monat pro Bewohner)","Variante A: abzgl. Sonderposten","Variante B: ohne Berücksichtigung Sonderposten","Zuständigkeit"]
[]
[]
[null,"Grundsicherungsmiete Gesamt (inkl. 25% Aufschlag) ",{"$f":"C142","v":537.5},{"$f":"D142","v":537.5},"Grundsicherungsträger"]
[]
[null,"Investitionsbetrag \"Miete\" (Überschussbetrag) (KdU> 125%)",{"$f":"C160-C152-D127","v":57.419508754460253},{"$f":"D160-D152-D158","v":106.68927889801682},"EGH-Träger"]
[]
[null,"Bruttowarmmiete je Bewohner",{"$f":"D126","v":594.91950875446025},{"$f":"D131","v":644.18927889801682}]
[]
[null,"Investitionsbetrag \"Fachleistungsräume\"",{"$f":"D127","v":244.47670317815948},{"$f":"D132","v":264.65137747904737},"EGH-Träger"]
[]
[null,"Gesamtkosten (KdU&FL)",{"$f":"D128","v":839.39621193261974},{"$f":"D133","v":908.84065637706419}]

{"sheet":"4. Regelbedarf","index":4,"n_rows":126,"n_cols":11,"rows_kept":126,"cut":false,"hidden":false,"merged":[[112,2,112,4],[100,2,100,4],[98,2,98,4],[49,2,49,4],[23,1,23,7],[70,2,70,4],[25,1,25,2],[25,5,25,6],[72,2,72,4],[84,2,84,4],[88,2,88,4],[109,2,109,4],[111,2,111,4],[87,2,87,4],[91,2,91,4],[108,2,108,4],[114,2,114,4],[52,2,52,4],[51,2,51,4],[50,2,50,4],[45,2,45,4],[46,2,46,4],[60,2,60,4],[64,2,64,4],[73,2,73,4],[75,2,75,4],[74,2,74,4],[76,2,76,4],[82,2,82,4],[83,2,83,4],[85,2,85,4],[86,2,86,4],[33,2,33,4],[32,2,32,4],[37,2,37,4],[47,2,47,4],[53,2,53,4],[92,2,92,4],[93,2,93,4],[107,2,107,4],[105,2,105,4],[104,2,104,4],[3,8,3,10],[31,1,31,6],[5,1,5,2],[4,3,4,5],[0,0,0,5],[28,5,28,6],[29,5,29,6],[26,1,26,2],[27,1,27,2],[28,1,28,2],[29,1,29,2],[24,1,24,3],[24,5,24,7],[26,5,26,6],[27,5,27,6],[22,1,22,7]]}
["Erhebungstool Trennung der Leistungen im Bundesteilhabegesetz ab 2020"]
[]
[null,"4. Regelbedarf"]
[null,null,null,null,null,null,null,null,"Bezugsjahr der eingegeben Daten"]
[null,null,null,"1.  entscheiden, welche Positionen von Leistungserbringer finanziert werden sollen (x)"]
[null,"2. tatsächl. oder geschätzte Kosten pro Bewohner eingeben",null,null,null,null,null,"Werte für Jahr: ",2017]
[]
["Nr.","Gütergruppen in der Einkommens- und Verbrauchsstichprobe 2013*","tatsächliche Kosten pro Bewohner pro Monat (Ist-Kosten oder geschätzte Werte)","davon durch Leistungserbringer zu finanzieren","davon durch Leistungs-berechtigten zu finanzieren","Monatl. Betrag nach Regelbedarfsstufe 2/2018**","Differenz RBS 2 zu tatsächl. Kosten","Monatl. Betragnach Regelbedarfsstufe 1/2018**","Differenz RBS 1 zu tatsächl. Kosten"]
[1,"Nahrungsmittel und alkoholfreie Getränke",150,"x",{"$f":"IF(D9=\"x\",\"\",\"x\")","v":""},132.77000000000001,{"$f":"F9-C9","v":-17.22999999999999},145.19999999999999,{"$f":"H9-C9","v":-4.8000000000000114}]
[3,"Bekleidung und Schuhe",31.42,null,{"$f":"IF(D10=\"x\",\"\",\"x\")","v":"x"},31.42,{"$f":"F10-C10","v":0},34.36,2.9399999999999977]
[4,"Wohnen, Energie und Instandhaltung***",{"$f":"('3. Kostenzuordnung & Mietber.'!C91/12)/'1. Datenerfassung'!B22","v":2.1315658451580783},"x","",31.27,{"$f":"F11-C11","v":29.138434154841921},34.19,32.058434154841919]
[5,"Innenausstattung, Haushaltsgeräte und -gegenstände, laufende Haushaltsführung**** ",22.66,"x",{"$f":"IF(D12=\"x\",\"\",\"x\")","v":""},28.35,5.6900000000000013,31,8.34]
[6,"Gesundheitspflege",15,null,"x",16.079999999999998,1.0799999999999983,17.59,2.59]
[7,"Verkehr",12,"x","",23.56,11.559999999999999,25.77,13.77]
[8,"Nachrichtenübermittlungen",33.020000000000003,"x","",33.020000000000003,0,36.11,3.0899999999999963]
[9,"Freizeit, Unterhaltung, Kultur",39,null,"x",41.29,2.2899999999999991,45.15,6.1499999999999986]
[10,"Bildung",20,"x","",1.42,-18.579999999999998,1.55,-18.45]
[11,"Beherbergungs- und Gaststättenleistungen",12,null,"x",7.41,-4.59,8.1,-3.9000000000000004]
[12,"Andere Waren und Dienstleistungen",36,"x","",27.38,-8.620000000000001,29.94,-6.0599999999999987]
[null,"Summe",{"$f":"SUM(C9:C19)","v":373.23156584515806},{"$f":"SUMIF(D9:D19,\"x\",C9:C19)","v":275.81156584515804},{"$f":"SUMIF(E9:E19,\"x\",C9:C19)","v":97.42},{"$f":"ROUNDUP(SUM(F9:F19), 0)","v":374},{"$f":"F20-C20","v":0.76843415484194111},{"$f":"ROUNDUP(SUM(H9:H19),0)","v":409},35.768434154841941,"*","Für einzelne Bestandteile der Gütergruppen siehe Tabelle unten"]
[null,null,null,null,null,null,null,null,null,"**","Hochrechnung auf Basis der Angaben für RBS 2, 2017 (http://www.harald-thome.de/fa/harald-thome/files/Aufteilung-Regelbedarf-2017.pdf), i.V.m. https://www.hartz4.net/regelsatz/   "]
[null,null,null,null,null,null,null,null,null,"***","Individueller Strom aus Tabellenblatt 3 (Kostenzuordnung) (C89) je Bewohner je Monat"]
[null,"Ergebnis ",null,null,null,null,null,null,null,"****","persönliche, individuelle Einrichtungsgegenstände (in Abgrenzung zu Ausstattung)"]
[null,"Regelbedarf"]
[null,"Variante 1: Zuerst wird der individuelle Bedarf des Leistungsberechtigten im Gesamtplanverfahren ermittelt, Leistungserbringer erhält den anschließend übrig bleibenden Betrag des Regelbedarfs. --> Defizitbetrag zu Lasten des Leistungserbringers",null,null,null,"Variante 2: Leistungserbringer errechnet zuerst den benötigten Anteil des Regelbedarfs für seine Vorhalteleistungen zum notwendigen Lebensunterhalt. Der Rest des Regelbedarfs verbleibt für den individuellen Bedarf des Leistungsberechtigten --> Defizitbetrag zu Lasten des Leistungsberechtigten"]
[null,"zur Verfügung stehender RBS 2",null,{"$f":"F20","v":374},null,"zur Verfügung stehender RBS 2",null,{"$f":"F20","v":374}]
[null,"Anteil Regelbedarf für Leistungsberechtigten (\"neuer Barbetrag\")",null,{"$f":"E20","v":97.42},null,"verbleibender Anteil Regelbedarf für Leistungsberechtigten (\"neuer Barbetrag\")",null,{"$f":"F20-D20","v":98.188434154841957}]
[null,"verbleibender Anteil Regelbedarf für Leistungserbringer",null,{"$f":"F20-E20","v":276.58},null,"Anteil Regelbedarf für Leistungs-erbringer",null,{"$f":"D20","v":275.81156584515804}]
[null,"Fehlbetrag RBS 2 zu tatsächlichen Kosten: Defizitbetrag zu Lasten des Leistungserbringers",null,{"$f":"F20-C20","v":0.76843415484194111},null,"Fehlbetrag RBS 2 zu tatsächlichen Kosten: Defizitbetrag zu Lasten des Leistungserbringers",null,{"$f":"F20-C20","v":0.76843415484194111}]
[null,"Fehlbetrag RBS 1 zu tatsächlichen Kosten: Defizitbetrag zu Lasten des Leistungserbringers",null,{"$f":"H20-C20","v":35.768434154841941},null,"Fehlbetrag RBS 1 zu tatsächlichen Kosten: Defizitbetrag zu Lasten des Leistungserbringers",null,{"$f":"H20-C20","v":35.768434154841941}]
[]
[null,"Übersicht Einzelpositionen der statistischen Zusammensetzung des Regelbedarfs"]
[null,"Abteilung, Code","Gegenstand der Nachweisung"]
[null,"01","Nahrungsmittel, alkoholfreie Getränke"]
[null,"0110 000","Nahrungsmittel "]
[null,"0120 000","Getränke"]
[null,"0210 000","alkoholische Getränke (substituiert durch Mineralwasser)"]
[null,"03","Bekleidung und Schuhe"]
[null,"0312 100","Bekleidung für Herren ab 14"]
[null,"0312 200","Bekleidung für Damen ab 14"]
[null,"0311 000","Bekleidungsstoffe"]
[null,"0313 000","Bekleidungszubehör"]
[null,"0321 100","Schuhe für Herren ab 14"]
[null,"0321 200","Schuhe für Damen ab 14"]
[null,"0321 900","Schuhzubehör"]
[null,"0314 100","fremde Änderungen und Reparaturen an Bekleidung (einschl. Leihgebühren)"]
[null,"0322 000","fremde Änderungen und Reparaturen an Schuhen (einschl. Leihgebühren)"]
[null,"04","Wohnen, Energie und Wohnungsinstandhaltung"]
[null,"0451 010","Strom (auch Solarenergie)"]
[null,"0431 000","Ausgaben für Instandhaltung und Schönheitsreparaturen Eigenleistungen\nMieter- Untermieterinnen für Haupt-, Zweit- und Freizeitwohnungen"]
[null,"0431 915","Ausgaben für kleinere Instandhaltung, Reparaturen der Eigentümer, Eigenleistungen"]
[null,"0413 900","Ausgaben für Instandhaltung /Schönheitsreparaturen – Fremdleistungen \nMieter- / Untermieterinnen für Haupt-, Zweit- und Freizeitwohnungen"]
[null,"0432 915","Ausgaben für kleinere Instandhaltung, Reparaturen der Eigentümer, Fremdleistungen (Handwerker/-innen)"]
[null,"05","Innenausstattung, Haushaltsgeräte und -gegenstände"]
[null,"0511 090","Lieferung, Installation von Möbeln und elektrischen Leuchten"]
[null,"0511 900","Möbel und Einrichtungsgegenstände"]
[null,"0512 090","Verlegen von Teppichen und elastischen Bodenbelägen"]
[null,"0512 910","Teppiche und elastische Bodenbeläge"]
[null,"0520 900","Heimtextilien"]
[null,"0531 100","Kühlschränke, Gefrierschränke / -truhen"]
[null,"0531 200","Waschmaschinen, Wäschetrockner, Geschirrspül- und Bügelmaschinen"]
[null,"0531 900","fremde Installationen Haushalts- großgeräten"]
[null,"0531 901","sonstige größere Haushaltsgeräte"]
[null,"0532 000","kleine elektrische Haushaltsgeräte"]
[null,"0540 400","Reparaturen an Glaswaren, Geschirr und anderen Gebrauchs-gegenständen für die Haushaltsführung"]
[null,"0540 900","Glaswaren, Geschirr und andere Haushaltsgegenstände"]
[null,"0551 902","elektrische Werkzeuge (inkl. Reparaturen, Miete)"]
[null,"0552 030","andere Gebrauchsgüter fürs Haus (Metallwaren, Elektroartikel)"]
[null,"0552 902","nicht elektrische Werkzeuge (inkl. Reparaturen, Miete)"]
[null,"0561 000","Verbrauchsgüter  Haushaltsführung"]
[null,"0513 000","Reparatur von Möbeln, Einrichtungs- gegenständen, Bodenbelägen"]
[null,"0533 000","Reparaturen an Haushaltsgeräten (inkl. Mieten)"]
[null,"06","Gesundheitspflege"]
[null,"0611 010","pharmazeutische Erzeugnisse\n- für gesetzlich Krankenversicherte\n- mit Rezept (nur Eigenanteil/ Zuzahlg)"]
[null,"0611 900","pharmazeutische Erzeugnisse mit/ohne Rezept (verauslagter Gesamtbetrag)"]
[null,"0612 010","andere medizinische Erzeugnisse\n- für gesetzlich Krankenversicherte\n- mit Rezept (nur Eigenanteil/ Zuzahlg)"]
[null,"0612 900","andere medizinische Erzeugnisse mit/ohne Rezept (verauslagter Gesamtbetrag)"]
[null,"0613 900","therapeutische Mittel und Geräte (einschl. Eigenanteile)"]
[null,"07","Verkehr"]
[null,"0713 000","Kauf oder Leasing von Fahrrädern"]
[null,"0721 070","Zubehör, Einzel- und Ersatzteile für Fahrräder"]
[null,"0723 000","Wartungen/Reparaturen"]
[null,"0730 901","fremde Verkehrsdienstleistungen (ohne Übernachtung) - nicht Luftverkehr"]
[null,"0730 902","fremde Verkehrsdienstleistungen ( mit Übernachtung) - nicht Luftverkehr"]
[null,"08","Nachrichtenübermittlung"]
[null,"0820 000","Kauf und Reparatur von Festnetz und Mobiltelefonen sowie anderen Kommunikationsgeräten"]
[null,"0810 000","Post- und Paketdienstleistungen, private Brief- und Paketzustelldienste, Gebühren und Entgelte,\nVersandkosten"]
[null,"0830 401","Kommunikationsdienstleistungen - Doppelflatrate Festnetztelefon und Internet (Kombipaket)"]
[null,"09","Freizeit, Unterhaltung und Kultur"]
[null,"0911 100","Tonempfangs-, -aufnahme und -wiedergabegeräte"]
[null,"0911 200","Fernseh- und Videogeräte, TV-Antennen"]
[null,"0913 000","Datenverarbeitungsgeräte sowie System- und Anwendungssoftware (einschl. Downloads und Apps)"]
[null,"0914 000","Bild-, Daten- und Tonträger (einschl. Downloads von Filmen, Musik, Fotos und entsprechenden Apps)"]
[null,"0921 900","langlebige Gebrauchsgüter und Ausrüstungen für Sport, Camping und Erholung, Musikinstrumente"]
[null,"0931 900","Spielwaren (auch Computer-, Onlinespiele, Downloads und Apps)"]
[null,"0932 010","Sportartikel"]
[null,"0941 020","außerschulische Sport- und Musikunterrichte, Hobbykurse"]
[null,"0941 040","Miete/Leihgebühren für Sport- und Campingartikel"]
[null,"0941 040","Eintrittsgelder, Nutzungsentgelte beim Besuch von Sport und Freizeitveranstaltungen bzw. -einrichtungen"]
[null,"0941 910","Dienstleistungen von Fotografen, Fotolabors, Fotoservices u. Ä."]
[null,"0942 430","Eintrittsgelder, Nutzungsentgelte beim Besuch von Kultur- veranstaltungen bzw. -einrichtungen"]
[null,"0942 910","sonstige Freizeit- und Kulturdienstleistungen"]
[null,"0951 000","Bücher und Broschüren (einschließlich Downloads und Apps)"]
[null,"0952 090","Miete/-Leihgebühr für Bücher, Zeitschriften"]
[null,"0952 900","Zeitungen und Zeitschriften, Landkarten und Globen (einschl. Downloads und Apps)"]
[null,"0953 900","sonstige Gebrauchsgüter für Schule, Büro, Unterhaltung und Freizeit"]
[null,"0954 900","sonstige Verbrauchsgüter (Schreibwaren, Zeichenmaterial i.A.)"]
[null,"0915 000","Reparaturen von Geräten für Empfang, Aufnahme und Wiedergabe von Ton und Bild, von Foto- und Filmausrüstungen und von optischen\nund Datenverarbeitungsgeräten"]
[null,"0923 900","Reparaturen und Installationen von langlebigen Gebrauchsgütern und Ausrüstungen für Kultur, Sport, Camping und Erholung, Musikinstrumente sowie Sport- und Campingartikeln"]
[null,10,"Bildungswesen"]
[null,"1050 900","Gebühren für Kurse (ohne Erwerb von Bildungsabschlüssen) "]
[null,11,"Beherbergungs- und Gaststättendienstleistungen"]
[null,"1111 000","Speisen und Getränke in Restaurants, Cafés, Eisdielen, an Imbissständen und vom Lieferservice"]
[null,"1112 000","Speisen und Getränke in Kantinen und Mensen"]
[null,12,"Andere Waren und Dienstleistungen"]
[null,"1231 902","Uhren (auch Reparaturen)"]
[null,"1211 030","andere Dienstleistungen für die Körperpflege"]
[null,"1211 101","Friseurdienstleistungen für Herren (Kosten einschl. Trinkgelder)"]
[null,"1211 200","Friseurdienstleistungen für Damen (Kosten einschl. Trinkgelder)"]
[null,"1212 200","elektrische Geräte für die Körperpflege (einschl. Reparaturen)"]
[null,"1213 010","nichtelektrische Gebrauchsgüter für die Körperpflege"]
[null,"1213 090","Toilettenpapier, Papiertaschentücher und ähnliche Hygieneartikel"]
[null,"1213 920","Körperpflegemittel, Duft- und Schönheitserzeugnisse"]
[null,"1262 900","Finanzdienstleistungen"]
[null,"1270 900","sonstige Dienstleistungen, a. n. g."]
[null,"1541 000","Mitgliedsbeiträge für Vereine, Parteien u. Ä."]

{"sheet":"5. Zusammenfassung","index":5,"n_rows":54,"n_cols":8,"rows_kept":54,"cut":false,"hidden":false,"merged":[[0,0,1,3],[3,0,4,3],[37,6,37,7],[46,0,46,2],[12,0,12,2],[29,0,29,2],[7,0,7,2]]}
["Erhebungstool Trennung der Leistungen im Bundesteilhabegesetz ab 2020"]
[]
[]
["4. Zusammenfassung der Ergebnisse"]
[]
[]
[]
["1. Anzahl der Bewohner"]
[]
[{"$f":"'1. Datenerfassung'!B22","v":24}]
[]
[]
["2. Ergebnis Flächenzuordnung"]
[]
["Bereich","Gesamtwert (m²)","je Bewohner (m²)"]
["∑ Individueller Wohnraum",{"$f":"'2. Flächenzuordnung'!C15","v":685},{"$f":"B16/'5. Zusammenfassung'!$A$10","v":28.541666666666668}]
["∑ Gemeinsamer Wohnraum",{"$f":"'2. Flächenzuordnung'!C30","v":265},{"$f":"B17/'5. Zusammenfassung'!$A$10","v":11.041666666666666}]
["∑ Fachleistungsflächen",{"$f":"'2. Flächenzuordnung'!B80","v":389},{"$f":"B18/'5. Zusammenfassung'!$A$10","v":16.208333333333332}]
[]
[{"$f":"'2. Flächenzuordnung'!D78","v":"Flächenverteilungsschlüssel"}]
["KdU",{"$f":"'2. Flächenzuordnung'!D79","v":0.70948469006721437}]
["FL",{"$f":"'2. Flächenzuordnung'!D80","v":0.29051530993278568}]
[]
["Zuordnung","Gesamtwert (m²)","je Bewohner (m²)"]
[{"$f":"'2. Flächenzuordnung'!A79","v":"∑ KdU-Fläche"},{"$f":"'2. Flächenzuordnung'!B79","v":950},{"$f":"'2. Flächenzuordnung'!C79","v":39.583333333333336}]
[{"$f":"'2. Flächenzuordnung'!A80","v":"∑ FL-Fläche"},{"$f":"'2. Flächenzuordnung'!B80","v":389},{"$f":"'2. Flächenzuordnung'!C80","v":16.208333333333332}]
[{"$f":"'2. Flächenzuordnung'!A81","v":"Gesamtfläche (ohne Mischflächen)"},{"$f":"'2. Flächenzuordnung'!B81","v":1339},{"$f":"'2. Flächenzuordnung'!C81","v":55.791666666666664}]
[]
[]
["3. Ergebnis Kostenzuordnung & Mietpreisberechnung"]
[]
["Mietpreis-Aufteilung (Werte je Bewohner je Monat):","Variante A: abzgl. Sonderposten","Variante B: ohne Berücksichtigung Sonderposten","Zuständigkeit"]
["Grundsicherungsmiete Gesamt (inkl. 25% Aufschlag)",{"$f":"'3. Kostenzuordnung & Mietber.'!C152","v":537.5},{"$f":"'3. Kostenzuordnung & Mietber.'!D152","v":537.5},"Grundsicherungsträger"]
["darin enthalten (gesondern auszuweisen nach § 42 a Abs. 5 SGB IX):"]
["Haushaltsstrom, Instandhaltung von persönlichen Räumlichkeiten und den Räumlichkeiten zur gemeinschaftlichen Nutzung sowie Ausstattung mit Haushaltsgroßgeräten",{"$f":"'3. Kostenzuordnung & Mietber.'!C139","v":73.741287030121981},{"$f":"'3. Kostenzuordnung & Mietber.'!D139","v":73.741287030121981}]
["Gebühren für Telekommunikation sowie Gebühren für den Zugang zu Rundfunk, Fernsehen und Internet",{"$f":"'3. Kostenzuordnung & Mietber.'!C140","v":27.777777777777775},{"$f":"'3. Kostenzuordnung & Mietber.'!D140","v":27.777777777777775}]
[]
["Investitionsbetrag \"Miete\" (Überschussbetrag) (KdU > 125%)",{"$f":"'3. Kostenzuordnung & Mietber.'!C154","v":57.419508754460253},{"$f":"'3. Kostenzuordnung & Mietber.'!D154","v":106.68927889801682},"EGH-Träger",null,null,"optionale Variation: Hier verschiedene Zimmergrößen eingeben"]
[]
["Bruttowarmmiete je Bewohner",{"$f":"'3. Kostenzuordnung & Mietber.'!C156","v":594.91950875446025},{"$f":"'3. Kostenzuordnung & Mietber.'!D156","v":644.18927889801682},null,null,"m²-Preis für reine Mietfläche (ohne Fachleistungsfläche)","Bew.-Zimmergröße ","individueller Mietpreis nach Zimmergröße + Gemeinschaftsfläche/Bew."]
[null,null,null,null,null,{"$f":"(B40*'1. Datenerfassung'!B22)/'2. Flächenzuordnung'!B79","v":15.029545484323206},20,{"$f":"$F$41*(G41+('2. Flächenzuordnung'!C30/'1. Datenerfassung'!B22))","v":466.54214107586614}]
["Investitionsbetrag \"Fachleistungsräume\"",{"$f":"'3. Kostenzuordnung & Mietber.'!C158","v":244.47670317815948},{"$f":"'3. Kostenzuordnung & Mietber.'!D158","v":264.65137747904737},"EGH-Träger",null,null,15,{"$f":"$F$41*(G42+('2. Flächenzuordnung'!C30/'1. Datenerfassung'!B22))","v":391.39441365425012}]
[null,null,null,null,null,null,12,{"$f":"$F$41*(G43+('2. Flächenzuordnung'!C30/'1. Datenerfassung'!B22))","v":346.30577720128048}]
["Gesamtkosten KdU&FL",{"$f":"'3. Kostenzuordnung & Mietber.'!C160","v":839.39621193261974},{"$f":"'3. Kostenzuordnung & Mietber.'!D160","v":908.84065637706419}]
[]
[]
["4. Regelbedarf"]
[]
["gewährter Regelbedarf (RBS 2)",{"$f":"'4. Regelbedarf'!F20","v":374}]
["tatsächliche Kosten notwendiger Lebensunterhalt",{"$f":"'4. Regelbedarf'!C20","v":373.23156584515806}]
["davon durch Leistungserbringer zu finanzieren",{"$f":"'4. Regelbedarf'!D20","v":275.81156584515804}]
["davon durch Leistungsberechtigten zu finanzieren",{"$f":"'4. Regelbedarf'!E20","v":97.42}]
["Differenzbetrag zu RBS 2",{"$f":"'4. Regelbedarf'!G20","v":0.76843415484194111}]
["(Differenzbetrag zu RBS 1)",{"$f":"'4. Regelbedarf'!I20","v":35.768434154841941}]

{"sheet":"6. Export","index":6,"n_rows":2,"n_cols":31,"rows_kept":2,"cut":false,"hidden":false,"merged":[]}
["Name der Einrichtung","Postleitzahl","Bundesland","Nutzung zusätzl. Gebäudeeinheiten","Bewohnerzahl","früherer Leistungstyp","max. Grundsicherungsmiete","max. Heizkosten","max. Bruttowarmmiete Grundsicherungsträger","Gesamtwert in m² KdU-Fläche","Gesamtwert in m² FL-Anteil","KdU-Anteil an Gesamtfläche","FL-Anteil an Gesamtfläche","Werte für Jahr (Kosten)","Nettokaltmiete je Bew. Je Monat","Betriebskosten je Bew. Je Monat","Heizkosten je Bew. Je Monat","Bruttowarmmiete je Bew. Je Monat (abzgl. Sonderposten)","Bruttowarmmiete je Bew. Je Monat (ohne Sonderposten) ","durch Grundsicherungsträger gewährte KdU + 25%","Überschussbetrag (KdU>125%)","Überschussbetrag (ohne Sonderposten)","Investitionsbetrag Fachleistungen","Investitionsbetrag Fachleistungen (ohne Sonderposten)","Gesamtmiete (KdU+FL)","Gesamtmiete (KdU+FL) (ohne Sonderposten)","Werte für Jahr (Regelbedarf)","Regelbedarf Ist-Kosten","Kosten Einrichtung","Kosten Leistungsberechtigter","genutztes Tool"]
[{"$f":"'1. Datenerfassung'!B6","v":"Musterwohnheim"},{"$f":"'1. Datenerfassung'!B10","v":12345},{"$f":"'1. Datenerfassung'!B16","v":"Nordrhein-Westfalen"},{"$f":"'1. Datenerfassung'!B18","v":"J/N"},{"$f":"'1. Datenerfassung'!B22","v":24},{"$f":"'1. Datenerfassung'!B28","v":0},{"$f":"'1. Datenerfassung'!B30","v":350},{"$f":"'1. Datenerfassung'!B31","v":80},{"$f":"'1. Datenerfassung'!B32","v":430},{"$f":"'2. Flächenzuordnung'!B79","v":950},{"$f":"'2. Flächenzuordnung'!B80","v":389},{"$f":"'2. Flächenzuordnung'!D79","v":0.70948469006721437},{"$f":"'2. Flächenzuordnung'!D80","v":0.29051530993278568},{"$f":"'3. Kostenzuordnung & Mietber.'!G10","v":2017},{"$f":"'3. Kostenzuordnung & Mietber.'!D115","v":686.45833333333337},{"$f":"'3. Kostenzuordnung & Mietber.'!D116","v":94.097222222222229},{"$f":"'3. Kostenzuordnung & Mietber.'!D117","v":6.9444444444444438},{"$f":"'3. Kostenzuordnung & Mietber.'!C156","v":594.91950875446025},{"$f":"'3. Kostenzuordnung & Mietber.'!D156","v":644.18927889801682},{"$f":"'3. Kostenzuordnung & Mietber.'!C142","v":537.5},{"$f":"'3. Kostenzuordnung & Mietber.'!C154","v":57.419508754460253},{"$f":"'3. Kostenzuordnung & Mietber.'!D154","v":106.68927889801682},{"$f":"'3. Kostenzuordnung & Mietber.'!C158","v":244.47670317815948},{"$f":"'3. Kostenzuordnung & Mietber.'!D158","v":264.65137747904737},{"$f":"'3. Kostenzuordnung & Mietber.'!C160","v":839.39621193261974},{"$f":"'3. Kostenzuordnung & Mietber.'!D160","v":908.84065637706419},{"$f":"'4. Regelbedarf'!I6","v":2017},{"$f":"'4. Regelbedarf'!C20","v":373.23156584515806},{"$f":"'4. Regelbedarf'!D20","v":275.81156584515804},{"$f":"'4. Regelbedarf'!E20","v":97.42},"Basistool DD"]